bitfinex/quotes_BTCUSD_20251215
["timestamp","ask_amount","ask_price","bid_price","bid_amount"]
[1765829180738,0.00998965,86103.0,86101.0,0.23248433]
[1765829180960,0.24389233,86104.0,86101.0,0.0002]
[1765829181173,0.2438919,86104.0,86101.0,0.0002]
[1765829182033,0.01161386,86104.0,86101.0,0.24409837]
[1765829182241,0.1159,86115.0,86108.0,0.01161332]
[1765829182408,0.01161237,86115.0,86110.0,0.28060023]
[1765829182608,0.1159,86119.0,86115.0,0.01161237]
[1765829182863,0.57429,86130.0,86115.0,0.01161237]
[1765829182864,0.0116113,86123.0,86120.0,0.23223298]
[1765829183063,0.12751076,86127.0,86124.0,0.23222243]
[1765829183064,0.24382807,86127.0,86124.0,0.23222243]
[1765829183208,0.00998965,86131.0,86128.0,0.01161062]
[1765829183410,0.24382386,86128.0,86125.0,0.24382952]
[1765829183608,0.01161035,86130.0,86127.0,0.24282437]
[1765829183805,0.24381286,86132.0,86128.0,0.01161062]
[1765829184030,0.01161062,86128.0,86125.0,0.0132239]
[1765829184352,0.0116117,86120.0,86116.0,0.01161224]
[1765829184672,0.0116117,86120.0,86112.0,0.04130278]
[1765829184883,0.23224826,86115.0,86112.0,0.04130278]
[1765829185098,0.23224799,86115.0,86112.0,0.27355815]
[1765829185317,0.24386036,86115.0,86112.0,0.26194536]
[1765829185434,0.23225161,86114.0,86112.0,0.02969]
[1765829185662,0.24388478,86107.0,86101.0,0.01181426]
[1765829185870,0.1159,86103.0,86102.0,0.01844]
[1765829186692,0.01161372,86105.0,86102.0,0.01844]
[1765829186693,0.23227891,86104.0,86102.0,0.01844]
[1765829187131,0.23227891,86104.0,86102.0,0.02144]
[1765829187335,0.23227891,86104.0,86102.0,0.01844]
[1765829187691,0.34817891,86104.0,86102.0,0.01844]
[1765829187918,0.1159,86104.0,86102.0,0.01844]
[1765829188157,0.34817754,86104.0,86102.0,0.01944]
[1765829188611,0.34817754,86104.0,86096.0,0.01161494]
[1765829188612,0.53299117,86095.0,86094.0,0.0002]
[1765829188823,0.53299117,86095.0,86083.0,0.0002]
[1765829188824,0.23233121,86084.0,86083.0,0.0002]
[1765829189025,0.77910121,86084.0,86083.0,0.0002]
[1765829189924,0.77910121,86084.0,86083.0,0.0012]
[1765829190141,0.77914121,86084.0,86083.0,0.0012]
[1765829191468,0.89547236,86084.0,86083.0,0.0012]
[1765829191972,0.77914121,86084.0,86083.0,0.0012]
[1765829192800,0.54681,86084.0,86083.0,0.0012]
[1765829193008,0.77914121,86084.0,86083.0,0.0012]
[1765829193305,0.66324121,86084.0,86083.0,0.0012]
[1765829193439,0.66324121,86084.0,86069.0,0.0002]
[1765829193440,0.523069,86070.0,86069.0,0.0002]
[1765829193647,0.232369,86070.0,86069.0,0.0002]
[1765829194003,0.01161777,86075.0,86069.0,0.0002]
[1765829194004,0.01161656,86084.0,86072.0,0.01161818]
[1765829194178,0.2323393,86081.0,86076.0,0.23235197]
[1765829194330,0.2323393,86081.0,86076.0,0.00161287]
[1765829194331,0.01161723,86079.0,86076.0,0.00161287]
[1765829194549,0.01161723,86079.0,86069.0,0.0002]
[1765829194550,0.2323589,86075.0,86069.0,0.0002]
[1765829194750,1.08331,86070.0,86069.0,0.0002]
[1765829195016,1.28927,86070.0,86069.0,0.0002]
[1765829197550,1.29127,86070.0,86069.0,0.0002]
[1765829198250,1.34592543,86070.0,86069.0,0.0002]
[1765829198488,0.56349,86070.0,86069.0,0.0002]
[1765829198702,0.04619965,86070.0,86069.0,0.0002]
[1765829199162,0.04619965,86070.0,86058.0,0.01162007]
[1765829199163,0.24240725,86052.0,86051.0,0.0002]
[1765829199371,0.29150725,86052.0,86051.0,0.0002]
[1765829199583,0.36308725,86052.0,86051.0,0.0002]
[1765829200426,0.36308725,86052.0,86051.0,0.0012]
[1765829201013,0.2815176,86052.0,86051.0,0.0012]
[1765829201222,0.00998965,86052.0,86051.0,0.00281287]
[1765829201436,0.01162007,86058.0,86051.0,0.12357287]
[1765829201643,0.01162007,86058.0,86055.0,0.01162047]
[1765829201906,0.01161993,86059.0,86056.0,0.01162034]
[1765829202120,0.00998965,86061.0,86059.0,0.23239768]
[1765829202336,0.00998965,86061.0,86059.0,0.23401099]
[1765829202551,0.09006,86077.0,86059.0,0.23401099]
[1765829202552,0.01161804,86073.0,86067.0,0.01161885]
[1765829202759,0.5,86080.0,86060.0,0.13099267]
[1765829202760,0.01161926,86064.0,86060.0,0.13099267]
[1765829202964,0.01161926,86064.0,86061.0,0.24401203]
[1765829203181,0.2323879,86063.0,86061.0,0.00161287]
[1765829203619,0.2323879,86063.0,86056.0,0.24602659]
[1765829203620,0.00998965,86057.0,86056.0,0.002]
[1765829203826,0.29149375,86057.0,86056.0,0.002]
[1765829204057,0.36307375,86057.0,86056.0,0.002]
[1765829204498,0.29149375,86057.0,86056.0,0.002]
[1765829204737,0.36307375,86057.0,86056.0,0.002]
[1765829204953,0.3483176,86052.0,86044.0,0.24406072]
[1765829205167,0.3483176,86052.0,86045.0,0.2440577]
[1765829205445,0.3483176,86052.0,86040.0,0.23244792]
[1765829205670,0.3483176,86052.0,86042.0,0.24406659]
[1765829205866,0.3483176,86052.0,86042.0,0.01162223]
[1765829206096,0.3483176,86052.0,86042.0,0.24406593]
[1765829206330,0.1159,86052.0,86051.0,0.00481287]
[1765829206557,0.01162007,86058.0,86053.0,0.23241473]
[1765829206784,0.24402147,86058.0,86054.0,0.23241173]
[1765829206991,0.0116198,86060.0,86055.0,0.01162047]
[1765829207203,0.23240201,86058.0,86055.0,0.26888275]
[1765829207410,0.24402208,86058.0,86055.0,0.01323334]
[1765829207621,0.24401754,86060.0,86056.0,0.23240662]
[1765829207838,0.24402003,86059.0,86056.0,0.30242949]
[1765829208045,0.0116198,86060.0,86056.0,0.08164321]
[1765829208256,0.0116198,86060.0,86059.0,0.02961]
[1765829208732,0.2440158,86060.0,86059.0,0.02961]
[1765829209386,0.2440158,86060.0,86059.0,0.03161]
[1765829210499,0.48205659,86060.0,86059.0,0.002]
[1765829210652,0.55363659,86060.0,86059.0,0.002]
[1765829211052,0.4805958,86060.0,86059.0,0.002]
[1765829213636,1.39316545,86060.0,86059.0,0.002]
[1765829213871,1.70867843,86060.0,86059.0,0.002]
[1765829214809,1.76089292,86060.0,86059.0,0.002]
[1765829215049,1.70867843,86060.0,86059.0,0.002]
[1765829215290,1.83579443,86060.0,86059.0,0.002]
[1765829216018,1.87820514,86060.0,86059.0,0.002]
[1765829216232,1.6390176,86052.0,86051.0,0.0002]
[1765829216435,1.71293058,86052.0,86051.0,0.0002]
[1765829216637,1.78451058,86052.0,86051.0,0.0002]
[1765829216861,1.90084173,86052.0,86051.0,0.0002]
[1765829218298,1.91165051,86052.0,86051.0,0.0012]
[1765829218517,1.81479936,86052.0,86051.0,0.0002]
[1765829218740,1.80699058,86052.0,86051.0,0.0002]
[1765829219002,1.78851058,86052.0,86051.0,0.0002]
[1765829219227,1.80699058,86052.0,86051.0,0.0002]
[1765829219397,1.83251643,86052.0,86051.0,0.0002]
[1765829219657,1.83651643,86052.0,86051.0,0.0002]
[1765829220088,1.80999058,86052.0,86051.0,0.0002]
[1765829220528,0.50081058,86052.0,86051.0,0.0002]
[1765829220724,0.007,86052.0,86051.0,0.35199317]
[1765829221051,0.007,86052.0,86051.0,0.23423317]
[1765829221052,0.003,86052.0,86051.0,0.23423317]
[1765829221467,0.26662605,86053.0,86051.0,0.00181287]
[1765829221668,0.2344176,86052.0,86051.0,0.00181287]
[1765829221986,0.3503176,86052.0,86051.0,0.00481287]
[1765829222214,0.3483176,86052.0,86051.0,0.00481287]
[1765829222557,0.3483176,86052.0,86051.0,0.00681287]
[1765829226114,0.2324176,86052.0,86051.0,0.00681287]
[1765829228915,0.2324176,86052.0,86051.0,0.05361287]
[1765829229731,0.2324176,86052.0,86051.0,0.00681287]
[1765829230661,0.24403378,86054.0,86051.0,0.00681287]
[1765829230866,0.25733193,86056.0,86053.0,0.05842074]
[1765829231046,0.25733193,86056.0,86051.0,0.00681287]
[1765829231047,0.01162061,86054.0,86051.0,0.00681287]
[1765829231255,0.2324176,86052.0,86051.0,0.00681287]
[1765829231464,0.2324176,86052.0,86051.0,0.00181287]
[1765829231650,0.2324176,86052.0,86051.0,0.0012]
[1765829231651,0.49674936,86052.0,86051.0,0.0012]
[1765829231866,0.59658486,86052.0,86051.0,0.0032]
[1765829232541,0.4979731,86052.0,86051.0,0.0032]
[1765829232747,0.7886731,86052.0,86051.0,0.0032]
[1765829232957,0.7886731,86052.0,86049.0,1e-08]
[1765829232958,0.58293265,86050.0,86049.0,1e-08]
[1765829233160,0.58293265,86050.0,86024.0,0.00973024]
[1765829233161,0.23248244,86028.0,86024.0,0.00973024]
[1765829233366,0.43370244,86028.0,86024.0,0.00973024]
[1765829233577,0.50861244,86028.0,86024.0,0.00973024]
[1765829234677,0.50861244,86028.0,86027.0,0.0012]
[1765829234881,0.27797209,86028.0,86027.0,0.0012]
[1765829235096,0.32779209,86028.0,86027.0,0.0012]
[1765829235379,0.50861244,86028.0,86027.0,0.0012]
[1765829235587,0.50939684,86028.0,86027.0,0.0012]
[1765829236658,0.50939684,86028.0,86027.0,0.0002]
[1765829237694,0.50861244,86028.0,86027.0,0.0002]
[1765829237898,0.53347812,86028.0,86027.0,0.0002]
[1765829238706,0.45856812,86028.0,86027.0,0.0002]
[1765829238932,0.50861244,86028.0,86027.0,0.0002]
[1765829239105,0.53347812,86028.0,86027.0,0.0002]
[1765829239281,0.64980927,86028.0,86027.0,0.0002]
[1765829239701,0.45856812,86028.0,86027.0,0.0002]
[1765829239901,0.50861244,86028.0,86027.0,0.0002]
[1765829240145,0.53347812,86028.0,86027.0,0.0002]
[1765829242442,0.53345043,86028.0,86027.0,0.0002]
[1765829242845,0.50861244,86028.0,86027.0,0.0002]
[1765829243044,0.59224318,86028.0,86027.0,0.0002]
[1765829243522,0.50861244,86028.0,86027.0,0.0002]
[1765829246167,0.50861244,86028.0,86027.0,0.047]
[1765829246168,0.23248244,86028.0,86027.0,0.047]
[1765829246343,0.23248244,86028.0,86027.0,0.04861287]
[1765829246543,0.01162385,86030.0,86027.0,0.11637287]
[1765829246714,0.24410089,86030.0,86029.0,0.0468]
[1765829246879,0.24410089,86030.0,86029.0,0.04841287]
[1765829247079,0.24410089,86030.0,86029.0,0.11617287]
[1765829247283,0.23896165,86030.0,86029.0,0.04841287]
[1765829247613,0.2324534,86039.0,86034.0,0.01162331]
[1765829247815,0.01162182,86045.0,86039.0,0.08767263]
[1765829247978,0.23245002,86040.0,86039.0,0.00161287]
[1765829248381,0.1159,86042.0,86039.0,0.00161287]
[1765829248580,0.05097597,86058.0,86045.0,0.01162182]
[1765829248581,0.2440501,86048.0,86045.0,0.01162182]
[1765829248823,0.01162182,86045.0,86042.0,0.0468]
[1765829249037,0.01162101,86051.0,86048.0,0.01162142]
[1765829249243,0.01162115,86050.0,86045.0,0.0468]
[1765829249681,0.23243381,86046.0,86045.0,0.0478]
[1765829249853,0.23243111,86047.0,86045.0,0.28023617]
[1765829250057,0.24404988,86048.0,86045.0,0.0468]
[1765829250261,0.2324283,86049.0,86046.0,0.23243121]
[1765829250460,0.2324283,86049.0,86047.0,0.23243079]
[1765829250664,0.2324283,86049.0,86046.0,0.00161287]
[1765829250665,0.2324283,86049.0,86048.0,0.0468]
[1765829250937,0.23243111,86047.0,86046.0,0.00161287]
[1765829251148,0.34833111,86047.0,86046.0,0.00161287]
[1765829251652,0.24242346,86046.0,86045.0,0.001]
[1765829251787,0.35881346,86046.0,86045.0,0.001]
[1765829251986,0.47023325,86046.0,86045.0,0.002]
[1765829252184,0.47023325,86046.0,86045.0,0.001]
[1765829252420,0.23247528,86031.0,86028.0,0.2625864]
[1765829252587,0.01162344,86033.0,86029.0,0.01162398]
[1765829252797,0.23246885,86035.0,86033.0,0.2324688]
[1765829253021,0.23246636,86034.0,86031.0,0.24409789]
[1765829253236,0.01162344,86033.0,86029.0,0.00161287]
[1765829253450,0.23247704,86030.0,86029.0,0.00161287]
[1765829253874,0.23247704,86030.0,86029.0,0.00461287]
[1765829254791,0.35260039,86030.0,86029.0,0.003]
[1765829255001,0.34683704,86030.0,86029.0,0.003]
[1765829255393,0.23248244,86028.0,86027.0,0.0002]
[1765829255599,0.26741244,86028.0,86027.0,0.0002]
[1765829255849,0.35846089,86030.0,86027.0,0.00181287]
[1765829255850,0.23248,86029.0,86027.0,0.00181287]
[1765829256064,0.23248244,86028.0,86027.0,0.00181287]
[1765829256652,0.1159,86028.0,86027.0,0.00181287]
[1765829256873,0.1159,86028.0,86027.0,0.00481287]
[1765829257080,0.0028,86030.0,86029.0,0.23247974]
[1765829257294,0.0028,86030.0,86029.0,0.34775261]
[1765829257492,0.0028,86030.0,86029.0,0.4642062]
[1765829257837,0.0028,86030.0,86029.0,0.51422459]
[1765829258572,0.0028,86030.0,86029.0,0.51622459]
[1765829258785,0.0028,86030.0,86029.0,0.34775261]
[1765829258981,0.0028,86030.0,86029.0,0.04707287]
[1765829259226,0.0028,86030.0,86029.0,0.05307287]
[1765829259428,0.23527704,86030.0,86029.0,0.00761287]
[1765829259628,0.23527704,86030.0,86029.0,0.00561287]
[1765829259831,0.35117704,86030.0,86029.0,0.00561287]
[1765829260011,0.35117704,86030.0,86029.0,0.00861287]
[1765829260213,0.24526669,86030.0,86029.0,0.00861287]
[1765829260415,0.29483385,86030.0,86029.0,0.00561287]
[1765829260636,0.24526669,86030.0,86029.0,0.004]
[1765829260969,0.24526669,86030.0,86029.0,0.006]
[1765829261288,0.24526669,86030.0,86029.0,0.002]
[1765829261504,0.24526669,86030.0,86029.0,0.003]
[1765829262968,0.23527704,86030.0,86029.0,0.00461287]
[1765829264309,0.23247704,86030.0,86029.0,0.00022236]
[1765829265437,0.24409502,86033.0,86029.0,0.04568236]
[1765829265630,0.23247434,86031.0,86030.0,0.02724]
[1765829266395,0.24409781,86032.0,86030.0,0.02724]
[1765829266396,0.1159,86033.0,86030.0,0.30517655]
[1765829266631,0.23244809,86041.0,86036.0,0.23245845]
[1765829266632,0.01162263,86039.0,86036.0,0.23245845]
[1765829266834,0.2324561,86038.0,86035.0,0.24408622]
[1765829267049,0.24407569,86039.0,86035.0,0.31228622]
[1765829267250,0.24407569,86039.0,86036.0,0.23245836]
[1765829267881,0.24407569,86039.0,86030.0,0.02724]
[1765829267882,0.01162155,86047.0,86040.0,0.0116225]
[1765829268011,0.01162155,86047.0,86041.0,0.26254698]
[1765829268216,0.01162182,86045.0,86042.0,0.24406685]
[1765829268464,0.01162277,86038.0,86035.0,0.01162317]
[1765829268639,0.0116229,86037.0,86033.0,0.01162344]
[1765829268843,0.1159,86033.0,86032.0,0.01848]
[1765829269057,0.34836893,86033.0,86032.0,0.01848]
[1765829270307,0.1159,86033.0,86032.0,0.02048]
[1765829270496,0.34836893,86033.0,86032.0,0.02048]
[1765829271135,0.34836893,86033.0,86032.0,0.02248]
[1765829271350,0.1159,86033.0,86032.0,0.02248]
[1765829271505,0.34836893,86033.0,86032.0,0.02248]
[1765829272723,0.1159,86033.0,86032.0,0.25495163]
[1765829273152,0.1159,86033.0,86032.0,0.2565645]
[1765829273494,0.1159,86033.0,86032.0,0.02409287]
[1765829273700,0.24408617,86036.0,86032.0,0.29396808]
[1765829274140,0.01162317,86035.0,86032.0,0.02409287]
[1765829274819,0.01162317,86035.0,86032.0,0.02009287]
[1765829274958,0.01162317,86035.0,86032.0,0.02109287]
[1765829275151,0.23246893,86033.0,86032.0,0.02309287]
[1765829275411,0.01162317,86035.0,86032.0,0.02009287]
[1765829275590,0.23246893,86033.0,86032.0,0.02009287]
[1765829275791,0.23246893,86033.0,86032.0,0.02209287]
[1765829276195,0.23246893,86033.0,86032.0,0.02048]
[1765829276397,0.27703893,86033.0,86032.0,0.01848]
[1765829276858,0.27703893,86033.0,86032.0,0.02048]
[1765829277142,0.23246893,86033.0,86032.0,0.01848]
[1765829277349,0.07872715,86033.0,86032.0,0.01948]
[1765829277549,0.23246893,86033.0,86032.0,0.01948]
[1765829277756,0.23246893,86033.0,86032.0,0.02148]
[1765829277971,0.01162317,86035.0,86032.0,0.02309287]
[1765829278158,0.24408136,86037.0,86034.0,0.04546]
[1765829278365,0.23246623,86034.0,86032.0,0.02109287]
[1765829278522,0.23246893,86033.0,86032.0,0.02109287]
[1765829278730,0.34682893,86033.0,86032.0,0.00361287]
[1765829278929,0.27703893,86033.0,86032.0,0.002]
[1765829279132,0.46272893,86033.0,86032.0,0.001]
[1765829279758,0.16047,86033.0,86032.0,0.002]
[1765829279961,0.01162223,86042.0,86038.0,0.2324543]
[1765829280166,0.04473169,86046.0,86043.0,0.23244133]
[1765829280397,0.00998965,86049.0,86046.0,0.2440531]
[1765829280398,0.24404732,86049.0,86046.0,0.2440531]
[1765829280603,0.01162034,86056.0,86054.0,0.23241117]
[1765829280731,0.2324068,86056.0,86048.0,0.03981142]
[1765829280929,0.15242147,86058.0,86050.0,0.01162115]
[1765829281146,0.0355,86068.0,86048.0,0.04142429]
[1765829281147,0.03111288,86065.0,86064.0,0.2323852]
[1765829281375,0.06215594,86078.0,86064.0,0.2323852]
[1765829281376,0.04273065,86075.0,86071.0,0.01161831]
[1765829281580,0.24396658,86078.0,86073.0,0.01161804]
[1765829281780,0.03111288,86081.0,86078.0,0.01161737]
[1765829282050,0.03111288,86082.0,86080.0,0.232342]
[1765829282252,0.03111288,86088.0,86086.0,0.23232581]
[1765829282515,0.23231817,86089.0,86087.0,0.0706]
[1765829282690,0.26343105,86089.0,86087.0,0.02655]
[1765829282890,0.23231891,86089.0,86087.0,0.04503]
[1765829283094,0.01161575,86090.0,86067.0,0.01161885]
[1765829283095,0.01161777,86075.0,86067.0,0.01161885]
[1765829283297,0.01161953,86062.0,86058.0,0.04009007]
[1765829283505,0.01161939,86063.0,86059.0,0.03009993]
[1765829283708,0.01161939,86063.0,86060.0,0.24401534]
[1765829284073,0.01161899,86066.0,86062.0,0.24401013]
[1765829284271,0.1159,86066.0,86064.0,0.01161926]
[1765829284478,0.1159,86070.0,86068.0,0.23237376]
[1765829284687,0.03651863,86079.0,86073.0,0.01161804]
[1765829284904,0.23235027,86077.0,86074.0,0.01161791]
[1765829285145,0.24397102,86076.0,86072.0,0.24398068]
[1765829285362,0.12751818,86072.0,86069.0,0.01848]
[1765829285595,0.23236725,86071.0,86069.0,0.01848]
[1765829285934,0.1159,86072.0,86069.0,0.01848]
[1765829286155,0.2439801,86073.0,86069.0,0.25085119]
[1765829286334,0.2439801,86073.0,86069.0,0.32143119]
[1765829286729,0.232364,86072.0,86069.0,0.32143119]
[1765829287092,0.23236133,86073.0,86070.0,0.23236756]
[1765829287505,0.23236503,86072.0,86069.0,0.03209858]
[1765829287692,0.23236503,86072.0,86069.0,0.26347002]
[1765829288017,0.0249014,86074.0,86070.0,0.24398687]
[1765829288169,0.01161723,86079.0,86073.0,0.05566804]
[1765829288345,0.01161696,86081.0,86078.0,0.03723737]
[1765829288550,0.01161696,86081.0,86078.0,0.02562]
[1765829288551,0.23234398,86080.0,86078.0,0.02562]
[1765829288749,0.23234398,86080.0,86073.0,0.00161287]
[1765829288750,0.2323582,86074.0,86073.0,0.00161287]
[1765829288954,0.01161764,86076.0,86073.0,0.00161287]
[1765829288955,0.24397263,86076.0,86073.0,0.00161287]
[1765829289149,0.2323582,86074.0,86073.0,0.00161287]
[1765829289999,0.24397088,86076.0,86073.0,0.23397365]
[1765829290212,0.23235608,86075.0,86073.0,0.00261287]
[1765829290418,0.23235608,86075.0,86073.0,0.00161287]
[1765829290620,0.23235608,86075.0,86073.0,0.00261287]
[1765829291082,0.23235608,86075.0,86073.0,0.00161287]
[1765829291424,0.23235608,86075.0,86073.0,0.00361287]
[1765829292395,0.23235586,86075.0,86073.0,0.00361287]
[1765829292634,0.23234269,86080.0,86073.0,0.00361287]
[1765829292635,0.23231589,86090.0,86086.0,0.01161629]
[1765829292838,0.01161575,86090.0,86089.0,0.0248]
[1765829293064,0.01161548,86092.0,86089.0,0.08046588]
[1765829293316,0.24392539,86092.0,86089.0,0.08046588]
[1765829293467,0.23230469,86094.0,86090.0,0.03009575]
[1765829293468,0.01161521,86094.0,86090.0,0.03009575]
[1765829293668,0.2323115,86092.0,86090.0,0.01648]
[1765829293914,0.2323115,86092.0,86082.0,0.24395268]
[1765829293915,0.24395607,86082.0,86081.0,0.01848]
[1765829294957,0.35985607,86082.0,86081.0,0.01848]
[1765829295359,0.35985607,86082.0,86081.0,0.02048]
[1765829296492,0.35985607,86082.0,86081.0,0.02148]
[1765829296697,0.35985607,86082.0,86081.0,0.01848]
[1765829296894,0.35985607,86082.0,86081.0,0.01948]
[1765829297092,0.35985607,86082.0,86081.0,0.02148]
[1765829297658,0.12751683,86082.0,86081.0,0.02148]
[1765829297791,0.35985343,86082.0,86081.0,0.02148]
[1765829298404,0.24395343,86082.0,86081.0,0.02148]
[1765829299193,0.01161561,86091.0,86085.0,0.01161642]
[1765829299395,0.2439336,86089.0,86086.0,0.02356]
[1765829299771,0.01161467,86098.0,86092.0,0.01161548]
[1765829300008,0.01161507,86095.0,86091.0,0.01161561]
[1765829300220,0.24391617,86096.0,86093.0,0.24392162]
[1765829300429,0.24391059,86098.0,86095.0,0.24391659]
[1765829300635,0.01161413,86102.0,86097.0,0.04405]
[1765829300853,0.23229073,86099.0,86098.0,0.02824]
[1765829301188,0.2438997,86101.0,86098.0,0.02824]
[1765829301395,0.23229052,86100.0,86098.0,0.02824]
[1765829301608,0.01161291,86111.0,86105.0,0.01161372]
[1765829301817,0.01161291,86111.0,86103.0,0.01161399]
[1765829301818,0.23227497,86105.0,86103.0,0.03009399]
[1765829302022,0.23227497,86105.0,86103.0,0.01848]
[1765829302254,0.23227724,86104.0,86103.0,0.01848]
[1765829302683,0.23225846,86111.0,86108.0,0.23226645]
[1765829302885,0.23225846,86111.0,86103.0,0.07414399]
[1765829302886,0.01161332,86108.0,86105.0,0.01161372]
[1765829303108,0.00998965,86114.0,86107.0,0.01161345]
[1765829303314,0.00998965,86114.0,86109.0,0.01161318]
[1765829303538,0.03637175,86118.0,86114.0,0.01161251]
[1765829303782,0.03637175,86118.0,86109.0,0.00161287]
[1765829303783,0.01161278,86112.0,86109.0,0.00161287]
[1765829303992,0.23226106,86110.0,86109.0,0.00161287]
[1765829304495,0.01161278,86112.0,86109.0,0.04566287]
[1765829304707,0.24386844,86112.0,86111.0,0.04405]
[1765829305509,0.23226106,86110.0,86109.0,0.00161287]
[1765829306308,0.23226106,86110.0,86109.0,0.04566287]
[1765829306489,0.24386844,86112.0,86111.0,0.001]
[1765829306636,0.24386599,86113.0,86111.0,0.001]
[1765829306861,0.01161278,86112.0,86109.0,0.24648885]
[1765829307041,0.24386582,86113.0,86110.0,0.24387402]
[1765829307299,0.2322563,86112.0,86109.0,0.24848953]
[1765829307501,0.01161251,86114.0,86110.0,0.24387389]
[1765829307715,0.01161251,86114.0,86111.0,0.001]
[1765829308579,0.01161251,86114.0,86111.0,0.002]
[1765829309004,0.23225564,86113.0,86111.0,0.001]
[1765829309241,0.1159,86110.0,86109.0,0.00161287]
[1765829309450,0.01161359,86106.0,86103.0,0.01848]
[1765829309654,0.12751318,86109.0,86102.0,0.03949413]
[1765829309655,0.23226648,86108.0,86104.0,0.01161386]
[1765829309773,0.01161278,86112.0,86108.0,0.04405]
[1765829309979,0.12751224,86116.0,86111.0,0.28791871]
[1765829310200,0.23225344,86113.0,86111.0,0.04405]
[1765829310550,0.12751224,86116.0,86111.0,0.05566291]
[1765829310769,0.1159,86116.0,86115.0,0.23224757]
[1765829310965,0.1159,86116.0,86115.0,0.07387]
[1765829311444,0.35975226,86118.0,86115.0,0.07387]
[1765829311608,0.1159,86118.0,86115.0,0.38499728]
[1765829311836,0.34813948,86118.0,86117.0,0.04511]
[1765829312042,0.0116117,86120.0,86117.0,0.0567221]
[1765829312294,0.00998965,86121.0,86119.0,0.23223678]
[1765829312477,0.01201062,86128.0,86119.0,0.23223678]
[1765829312478,0.0004,86128.0,86125.0,0.01161103]
[1765829312613,0.0004,86128.0,86120.0,0.11843]
[1765829312614,0.23222993,86122.0,86120.0,0.11843]
[1765829312814,0.0116113,86123.0,86120.0,0.07005]
[1765829313036,0.00998965,86118.0,86117.0,0.00161287]
[1765829313443,0.24222913,86118.0,86117.0,0.04999287]
[1765829314138,0.00998965,86118.0,86117.0,0.04999287]
[1765829314585,0.24222913,86118.0,86117.0,0.04999287]
[1765829315082,0.00998965,86118.0,86117.0,0.04999287]
[1765829315285,0.24222913,86118.0,86117.0,0.05199287]
[1765829315641,0.24222913,86118.0,86117.0,0.05299287]
[1765829316396,0.29073913,86118.0,86117.0,0.003]
[1765829316570,0.36133913,86118.0,86117.0,0.003]
[1765829316997,0.29073913,86118.0,86117.0,0.003]
[1765829317216,0.42743264,86118.0,86117.0,0.003]
[1765829317387,0.53334299,86118.0,86117.0,0.003]
[1765829317589,0.55810454,86118.0,86117.0,0.003]
[1765829318360,0.55810454,86118.0,86117.0,0.002]
[1765829318512,0.1159,86099.0,86098.0,0.25073343]
[1765829318711,0.1159,86099.0,86098.0,0.2523463]
[1765829318970,0.01161224,86116.0,86107.0,0.23226915]
[1765829319143,0.00998965,86119.0,86116.0,0.01161224]
[1765829319311,0.02160148,86119.0,86116.0,0.24385655]
[1765829319534,0.002,86118.0,86117.0,0.23224199]
[1765829319762,0.002,86118.0,86117.0,0.30229199]
[1765829319982,0.002,86118.0,86117.0,0.11843]
[1765829320198,0.00998965,86119.0,86117.0,0.04838]
[1765829320823,0.00998965,86119.0,86118.0,0.28061948]
[1765829321250,0.00998965,86119.0,86116.0,0.01161224]
[1765829321558,0.00998965,86119.0,86118.0,0.28061948]
[1765829321833,0.00998965,86119.0,86116.0,0.001]
[1765829321834,0.39665218,86117.0,86116.0,0.001]
[1765829321996,0.01161251,86114.0,86108.0,0.25915584]
[1765829322198,0.1159,86110.0,86109.0,0.25070299]
[1765829322597,0.1159,86110.0,86109.0,0.26231617]
[1765829323222,0.1159,86110.0,86109.0,0.02144]
[1765829323585,0.39667106,86110.0,86109.0,0.003]
[1765829323827,0.36136071,86110.0,86109.0,0.003]
[1765829324628,0.36136071,86110.0,86098.0,0.01844]
[1765829324629,0.23229073,86099.0,86098.0,0.01844]
[1765829324793,0.3481904,86100.0,86098.0,0.01844]
[1765829325293,0.23229073,86099.0,86098.0,0.01844]
[1765829325952,0.31314038,86099.0,86098.0,0.002]
[1765829326119,0.31314038,86099.0,86088.0,0.01844]
[1765829326120,0.23231771,86089.0,86088.0,0.01844]
[1765829326299,0.1159,86089.0,86088.0,0.01844]
[1765829326521,0.1159,86089.0,86088.0,0.25076041]
[1765829327960,0.34821771,86089.0,86088.0,0.01844]
[1765829328165,0.34821771,86089.0,86088.0,0.02244]
[1765829328487,0.4363997,86089.0,86088.0,0.004]
[1765829328785,0.4363997,86089.0,86088.0,0.003]
[1765829328786,0.36141736,86089.0,86088.0,0.003]
[1765829329132,0.36141736,86089.0,86077.0,0.01844]
[1765829329133,0.2323474,86078.0,86077.0,0.01844]
[1765829329356,0.3482474,86078.0,86077.0,0.01844]
[1765829329629,0.00998965,86083.0,86081.0,0.23233741]
[1765829329810,0.00998965,86083.0,86081.0,0.23233899]
[1765829329981,0.00998965,86083.0,86082.0,0.2323366]
[1765829330193,0.01161629,86086.0,86081.0,0.23233899]
[1765829330416,0.1159,86081.0,86080.0,0.2439591]
[1765829331046,0.03338,86091.0,86085.0,0.01161642]
[1765829331352,0.01161521,86094.0,86091.0,0.23231194]
[1765829331485,0.1159,86095.0,86092.0,0.01161548]
[1765829331691,0.1159,86095.0,86090.0,0.02732]
[1765829331692,0.01161534,86093.0,86090.0,0.02732]
[1765829331995,0.2439251,86092.0,86088.0,0.01161602]
[1765829332214,0.23231274,86091.0,86089.0,0.01161588]
[1765829332441,0.23231274,86091.0,86088.0,0.24393623]
[1765829332639,0.2323157,86090.0,86086.0,0.01161629]
[1765829333051,0.01161602,86088.0,86083.0,0.01161669]
[1765829333247,0.1159,86086.0,86084.0,0.01161656]
[1765829334079,0.1159,86086.0,86084.0,0.24394678]
[1765829334286,0.2323453,86079.0,86071.0,0.01161831]
[1765829334452,0.2323453,86079.0,86060.0,0.09749]
[1765829334453,0.24233705,86078.0,86074.0,0.23235751]
[1765829334659,0.1159,86083.0,86079.0,0.01161723]
[1765829334859,0.01161642,86085.0,86084.0,0.001]
[1765829335065,0.24394493,86085.0,86084.0,0.001]
[1765829335271,0.24394493,86085.0,86084.0,0.002]
[1765829335467,0.24394493,86085.0,86082.0,0.23233608]
[1765829336110,0.01161656,86084.0,86080.0,0.2439539]
[1765829336429,0.1159,86081.0,86080.0,0.0116171]
[1765829336630,0.1275171,86080.0,86077.0,0.01423037]
[1765829336761,0.35986046,86080.0,86077.0,0.24558009]
[1765829337388,0.11587838,86082.0,86081.0,0.01161696]
[1765829337624,0.11587838,86080.0,86079.0,0.24396193]
[1765829337870,0.11587838,86080.0,86079.0,0.2323447]
[1765829338045,0.11587838,86080.0,86079.0,0.2807247]
[1765829338408,0.11587838,86082.0,86081.0,0.002]